fUSD/lending_fUSD_20250515
["ID","MTS","AMOUNT","RATE_DAILY","PERIOD"]
[361158132,1747312262827,-463.55,0.00012535,2]
[361158133,1747312262839,-475.16,0.00012535,2]
[361158134,1747312262853,-647.93,0.00012535,2]
[361158135,1747312262863,-493.97,0.00012535,2]
[361158136,1747312262874,-408.34,0.00012535,2]
[361158137,1747312262883,-400.0,0.00012535,2]
[361158138,1747312262893,-930.04,0.00012535,2]
[361158139,1747312262903,-584.59,0.00012535,2]
[361158140,1747312262912,-508.74,0.00012535,2]
[361158141,1747312262921,-400.0,0.00012535,2]
[361158142,1747312262931,-562.67,0.00012535,2]
[361158143,1747312262940,-587.33,0.00012535,2]
[361158144,1747312262950,-400.0,0.00012535,2]
[361158145,1747312262960,-480.35,0.00012535,2]
[361158146,1747312262970,-4583.82785248,0.00012591,2]
[361158147,1747312262981,-1000.0,0.000126,2]
[361158148,1747312262992,-400.0,0.00012643,2]
[361158149,1747312263002,-400.0,0.00012643,2]
[361158150,1747312263014,-1002.6618643,0.00012668,2]
[361158151,1747312263025,-469.89,0.0001269,2]
[361158152,1747312263036,-400.0,0.0001269,2]
[361158153,1747312263047,-499.13,0.0001269,2]
[361158154,1747312263057,-2415.52,0.0001269,2]
[361158155,1747312263068,-2561.98,0.0001269,2]
[361158156,1747312263080,-400.0,0.00012691,2]
[361158157,1747312263093,-400.0,0.00012691,2]
[361158158,1747312263106,-483.79,0.00012691,2]
[361158159,1747312263117,-709.94,0.00012691,2]
[361158160,1747312263127,-400.0,0.00012691,2]
[361158161,1747312263138,-494.81,0.00012691,2]
[361158162,1747312263149,-481.22,0.00012691,2]
[361158163,1747312263160,-400.0,0.00012691,2]
[361158164,1747312263170,-419.11,0.00012691,2]
[361158165,1747312263180,-624.18,0.00012691,2]
[361158166,1747312263191,-400.0,0.00012691,2]
[361158167,1747312263201,-217.61257642,0.00012691,2]
[361158168,1747312263213,-620.77,0.00012691,2]
[361158169,1747312263224,-400.0,0.00012691,2]
[361158170,1747312263234,-400.0,0.00012691,2]
[361158171,1747312263245,-400.0,0.00012691,2]
[361158172,1747312263256,-400.0,0.00012691,2]
[361158173,1747312263266,-400.0,0.00012691,2]
[361158174,1747312263277,-400.0,0.00012691,2]
[361158175,1747312263288,-440.9,0.00012691,2]
[361158176,1747312263299,-1038.52,0.00012691,2]
[361158177,1747312263309,-400.0,0.00012691,2]
[361158178,1747312263320,-881.03,0.00012691,2]
[361158179,1747312263330,-501.16,0.00012691,2]
[361158180,1747312263341,-1344.14,0.00012691,2]
[361158181,1747312263354,-451.75,0.00012691,2]
[361158182,1747312263364,-400.0,0.00012691,2]
[361158183,1747312263374,-612.11,0.00012691,2]
[361158184,1747312263384,-462.96,0.00012691,2]
[361158185,1747312263394,-477.75,0.00012691,2]
[361158186,1747312263404,-400.0,0.00012691,2]
[361158187,1747312263414,-400.0,0.00012691,2]
[361158188,1747312263423,-400.0,0.00012691,2]
[361158189,1747312263433,-439.58,0.00012691,2]
[361158190,1747312263443,-400.0,0.00012691,2]
[361158191,1747312263452,-439.08,0.00012691,2]
[361158192,1747312263463,-513.86314494,0.00012691,2]
[361158193,1747312263478,-576.82,0.00012691,2]
[361158194,1747312263488,-413.48,0.00012691,2]
[361158195,1747312263499,-546.12,0.00012691,2]
[361158196,1747312263512,-416.69,0.00012691,2]
[361158197,1747312263522,-505.41,0.00012691,2]
[361158198,1747312263532,-400.0,0.00012691,2]
[361158199,1747312263542,-400.0,0.00012691,2]
[361158200,1747312263553,-465.84,0.00012691,2]
[361158201,1747312263563,-151.0,0.00012691,2]
[361158202,1747312263573,-400.0,0.00012691,2]
[361158203,1747312263583,-400.0,0.00012691,2]
[361158204,1747312263598,-1045.24,0.00012691,2]
[361158205,1747312263609,-472.83,0.00012691,2]
[361158206,1747312263620,-400.0,0.00012691,2]
[361158207,1747312263630,-699.13,0.00012691,2]
[361158208,1747312263640,-999.87,0.00012691,2]
[361158209,1747312263650,-1258.7,0.00012691,2]
[361158210,1747312263660,-871.71,0.00012691,2]
[361158211,1747312263670,-400.0,0.00012691,2]
[361158212,1747312263691,-563.34,0.00012691,2]
[361158213,1747312263703,-522.13,0.00012691,2]
[361158214,1747312263713,-569.36,0.00012691,2]
[361158215,1747312263724,-467.55,0.00012691,2]
[361158216,1747312263734,-558.97,0.00012691,2]
[361158217,1747312263744,-995.06,0.00012691,2]
[361158218,1747312263754,-2978.01,0.00012691,2]
[361158219,1747312263766,-400.0,0.00012691,2]
[361158220,1747312263777,-961.53,0.00012691,2]
[361158221,1747312263788,-814.79,0.00012691,2]
[361158222,1747312263799,-400.0,0.00012691,2]
[361158223,1747312263809,-1150.65,0.00012691,2]
[361158224,1747312263820,-953.55,0.00012691,2]
[361158225,1747312263830,-945.18,0.00012691,2]
[361158226,1747312263842,-605.88,0.00012691,2]
[361158227,1747312263855,-400.0,0.00012691,2]
[361158228,1747312263865,-793.37,0.00012691,2]
[361158229,1747312263875,-400.0,0.00012691,2]
[361158230,1747312263886,-400.0,0.00012691,2]
[361158231,1747312263897,-400.0,0.00012691,2]
[361158232,1747312263907,-565.3,0.00012691,2]
[361158233,1747312263918,-3659.41,0.00012691,2]
[361158234,1747312263930,-400.0,0.00012691,2]
[361158235,1747312263941,-400.0,0.00012691,2]
[361158236,1747312263951,-586.1,0.00012691,2]
[361158237,1747312263962,-866.92,0.00012691,2]
[361158238,1747312263974,-1133.62,0.00012691,2]
[361158239,1747312263985,-400.0,0.00012691,2]
[361158240,1747312263995,-400.0,0.00012691,2]
[361158241,1747312264006,-896.17,0.00012691,2]
[361158242,1747312264016,-3422.62,0.00012691,2]
[361158243,1747312264026,-400.0,0.00012691,2]
[361158244,1747312264036,-400.0,0.00012691,2]
[361158245,1747312264046,-1508.16,0.00012691,2]
[361158246,1747312264057,-400.0,0.00012691,2]
[361158247,1747312264067,-400.0,0.00012691,2]
[361158248,1747312264078,-2309.39,0.00012691,2]
[361158249,1747312264089,-546.0,0.00012691,2]
[361158250,1747312264102,-521.69,0.00012691,2]
[361158251,1747312264112,-982.05,0.00012691,2]
[361158252,1747312264122,-499.46,0.00012691,2]
[361158253,1747312264133,-400.0,0.00012691,2]
[361158254,1747312264144,-2191.97,0.00012691,2]
[361158255,1747312264154,-957.61,0.00012691,2]
[361158256,1747312264164,-722.35,0.00012691,2]
[361158257,1747312264174,-400.0,0.00012691,2]
[361158258,1747312264185,-2080.12,0.00012691,2]
[361158259,1747312264195,-668.17,0.00012691,2]
[361158260,1747312264206,-400.0,0.00012691,2]
[361158261,1747312264216,-400.0,0.00012691,2]
[361158262,1747312264226,-400.0,0.00012691,2]
[361158263,1747312264236,-1597.82,0.00012691,2]
[361158264,1747312264247,-1630.72,0.00012691,2]
[361158265,1747312264258,-400.0,0.00012691,2]
[361158266,1747312264268,-3843.82,0.00012691,2]
[361158267,1747312264279,-598.25,0.00012691,2]
[361158268,1747312264290,-1950.93,0.00012691,2]
[361158269,1747312264301,-457.12,0.00012691,2]
[361158270,1747312264312,-922.32,0.00012691,2]
[361158271,1747312264323,-10611.15,0.00012691,2]
[361158272,1747312264334,-400.0,0.00012691,2]
[361158273,1747312264348,-400.0,0.00012691,2]
[361158274,1747312264359,-400.0,0.00012691,2]
[361158275,1747312264370,-1108.85,0.00012691,2]
[361158276,1747312264381,-541.7,0.00012691,2]
[361158277,1747312264392,-501.52,0.00012691,2]
[361158278,1747312264403,-601.85,0.00012691,2]
[361158279,1747312264413,-589.76,0.00012691,2]
[361158280,1747312264423,-29073.02,0.00012691,2]
[361158281,1747312264433,-622.13,0.00012691,2]
[361158282,1747312264443,-400.0,0.00012691,2]
[361158283,1747312264453,-3250.93,0.00012691,2]
[361158284,1747312264464,-676.29,0.00012691,2]
[361158285,1747312264479,-2267.04,0.00012691,2]
[361158286,1747312264492,-530.87,0.00012691,2]
[361158287,1747312264503,-420.88,0.00012691,2]
[361158288,1747312264514,-796.59,0.00012691,2]
[361158289,1747312264525,-151.0,0.00012692,2]
[361158290,1747312264535,-419.55,0.00012692,2]
[361158291,1747312264546,-452.45,0.00012692,2]
[361158292,1747312264558,-400.0,0.00012692,2]
[361158293,1747312264570,-400.0,0.00012692,2]
[361158294,1747312264582,-400.0,0.00012692,2]
[361158295,1747312264598,-400.0,0.00012692,2]
[361158296,1747312264608,-400.0,0.00012692,2]
[361158297,1747312264619,-448.46,0.00012692,2]
[361158298,1747312264630,-400.0,0.00012692,2]
[361158299,1747312264640,-400.0,0.00012692,2]
[361158300,1747312264651,-308.0577203,0.00012692,2]
[361158301,1747312264661,-400.0,0.00012692,2]
[361158302,1747312264672,-400.0,0.00012692,2]
[361158303,1747312264683,-400.0,0.00012692,2]
[361158304,1747312264694,-400.0,0.00012692,2]
[361158305,1747312264704,-400.0,0.00012692,2]
[361158306,1747312264715,-400.0,0.00012692,2]
[361158307,1747312264837,-572.49,0.00012692,2]
[361158308,1747312264852,-400.0,0.00012692,2]
[361158309,1747312264862,-455.44,0.00012692,2]
[361158310,1747312264873,-545.88,0.00012692,2]
[361158311,1747312264883,-400.0,0.00012692,2]
[361158312,1747312264893,-400.0,0.00012692,2]
[361158313,1747312264903,-400.0,0.00012692,2]
[361158314,1747312264914,-613.99,0.00012692,2]
[361158315,1747312264924,-400.0,0.00012692,2]
[361158316,1747312264935,-400.0,0.00012692,2]
[361158317,1747312264946,-559.8,0.00012692,2]
[361158318,1747312264957,-7018.63,0.00012692,2]
[361158319,1747312264968,-472.72,0.00012692,2]
[361158320,1747312264978,-1647.57,0.00012692,2]
[361158321,1747312264989,-400.0,0.00012692,2]
[361158322,1747312265000,-400.0,0.00012692,2]
[361158323,1747312265010,-400.0,0.00012692,2]
[361158324,1747312265020,-582.36,0.00012692,2]
[361158325,1747312265031,-400.0,0.00012692,2]
[361158326,1747312265042,-1273.86,0.00012692,2]
[361158327,1747312265052,-400.0,0.00012692,2]
[361158328,1747312265063,-707.6,0.00012692,2]
[361158329,1747312265074,-422.19857018,0.00012692,2]
[361158330,1747312265087,-400.0,0.00012692,2]
[361158331,1747312265100,-346.709152,0.00012692,2]
[361158332,1747312265111,-847.58,0.00012692,2]
[361158333,1747312265121,-204.74089089,0.00012692,2]
[361158334,1747312265132,-532.14,0.00012692,2]
[361158335,1747312265142,-400.0,0.00012692,2]
[361158336,1747312265152,-400.0,0.00012692,2]
[361158337,1747312265162,-504.34,0.00012692,2]
[361158338,1747312265172,-539.45,0.00012692,2]
[361158339,1747312265182,-400.0,0.00012692,2]
[361158340,1747312265194,-400.0,0.00012692,2]
[361158341,1747312265203,-400.0,0.00012692,2]
[361158342,1747312265213,-400.0,0.00012692,2]
[361158343,1747312265223,-154.08333644,0.00012692,2]
[361158344,1747312265233,-672.34,0.00012692,2]
[361158345,1747312265243,-400.0,0.00012692,2]
[361158346,1747312265254,-1000.0,0.000127,2]
[361158347,1747312265263,-305.92,0.00012725,2]
[361158348,1747312265273,-587.0,0.00012727,2]
[361158349,1747312265284,-400.0,0.00012757,2]
[361158350,1747312265294,-826.96,0.00012776,2]
[361158351,1747312265304,-400.0,0.00012776,2]
[361158352,1747312265315,-400.0,0.00012776,2]
[361158353,1747312265324,-1048.33,0.00012776,2]
[361158354,1747312265334,-400.0,0.00012776,2]
[361158355,1747312265345,-400.0,0.00012776,2]
[361158356,1747312265355,-400.0,0.00012776,2]
[361158357,1747312265365,-423.63,0.00012776,2]
[361158358,1747312265375,-535.8,0.00012776,2]
[361158359,1747312265385,-1990.2,0.00012776,2]
[361158360,1747312265396,-566.87,0.00012776,2]
[361158361,1747312265406,-1000.0,0.000128,2]
[361158362,1747312265415,-400.0,0.00012809,2]
[361158363,1747312265425,-400.0,0.00012809,2]
[361158364,1747312265435,-572.39,0.00012809,2]
[361158365,1747312265444,-400.0,0.00012809,2]
[361158366,1747312265453,-400.0,0.00012809,2]
[361158367,1747312265464,-400.0,0.00012809,2]
[361158368,1747312265477,-400.0,0.00012809,2]
[361158369,1747312265487,-475.17,0.00012809,2]
[361158370,1747312265497,-427.86,0.00012809,2]
[361158371,1747312265507,-396.59,0.00012809,2]
[361158372,1747312265516,-531.85,0.00012809,2]
[361158373,1747312265525,-400.0,0.00012809,2]
[361158374,1747312265534,-472.87,0.00012809,2]
[361158375,1747312265544,-800.26,0.00012809,2]
[361158376,1747312265554,-400.0,0.00012809,2]
[361158377,1747312265564,-527.61,0.00012809,2]
[361158378,1747312265574,-938.56,0.00012809,2]
[361158379,1747312265583,-400.0,0.00012809,2]
[361158380,1747312265596,-542.45,0.00012809,2]
[361158381,1747312265606,-400.0,0.00012809,2]
[361158382,1747312265615,-448.35,0.00012809,2]
[361158383,1747312265624,-515.02,0.00012809,2]
[361158384,1747312265633,-920.05,0.00012809,2]
[361158385,1747312265643,-619.27,0.00012809,2]
[361158386,1747312265652,-546.2,0.00012809,2]
[361158387,1747312265662,-400.0,0.00012809,2]
[361158388,1747312265671,-400.0,0.00012809,2]
[361158389,1747312265680,-400.87,0.00012809,2]
[361158390,1747312265690,-400.0,0.00012809,2]
[361158391,1747312265700,-400.0,0.00012809,2]
[361158392,1747312265711,-457.69,0.00012809,2]
[361158393,1747312265720,-704.72,0.00012809,2]
[361158394,1747312265730,-450.0,0.00012809,2]
[361158395,1747312265740,-640.67,0.00012809,2]
[361158396,1747312265750,-400.0,0.00012809,2]
[361158397,1747312265760,-463.55,0.00012809,2]
[361158398,1747312265770,-475.16,0.00012809,2]
[361158399,1747312265780,-647.93,0.00012809,2]
[361158400,1747312265790,-493.97,0.00012809,2]
[361158401,1747312265800,-408.34,0.00012809,2]
[361158402,1747312265810,-400.0,0.00012809,2]
[361158403,1747312265819,-930.04,0.00012809,2]
[361158404,1747312265829,-584.59,0.00012809,2]
[361158405,1747312265839,-508.74,0.00012809,2]
[361158406,1747312265855,-400.0,0.00012809,2]
[361158407,1747312265865,-562.67,0.00012809,2]
[361158408,1747312265876,-587.33,0.00012809,2]
[361158409,1747312265886,-400.0,0.00012809,2]
[361158410,1747312265896,-480.35,0.00012809,2]
[361158411,1747312265907,-500.0,0.00012833,2]
[361158412,1747312265917,-500.0,0.00012833,2]
[361158413,1747312265926,-1126.18,0.000129,2]
[361158414,1747312265936,-3019.0,0.000129,2]
[361158415,1747312265946,-500.0,0.000129,4]
[361158416,1747312265957,-400.0,0.00012917,2]
[361158417,1747312265966,-400.0,0.00012917,2]
[361158418,1747312265976,-469.89,0.00012964,2]
[361158419,1747312265985,-512.22,0.00012964,2]
[361158420,1747312265995,-499.13,0.00012964,2]
[361158421,1747312266005,-2415.52,0.00012964,2]
[361158422,1747312266015,-2561.98,0.00012964,2]
[361158423,1747312266025,-400.0,0.00012965,2]
[361158424,1747312266035,-400.0,0.00012965,2]
[361158425,1747312266044,-483.79,0.00012965,2]
[361158426,1747312266053,-709.94,0.00012965,2]
[361158427,1747312266063,-400.0,0.00012965,2]
[361158428,1747312266073,-494.81,0.00012965,2]
[361158429,1747312266083,-481.22,0.00012965,2]
[361158430,1747312266097,-400.0,0.00012965,2]
[361158431,1747312266106,-419.11,0.00012965,2]
[361158432,1747312266115,-624.18,0.00012965,2]
[361158433,1747312266125,-400.0,0.00012965,2]
[361158434,1747312266135,-620.77,0.00012965,2]
[361158435,1747312266144,-400.0,0.00012965,2]
[361158436,1747312266154,-400.0,0.00012965,2]
[361158437,1747312266164,-400.0,0.00012965,2]
[361158438,1747312266174,-528.12,0.00012965,2]
[361158439,1747312266184,-239.95278446,0.00012965,2]
[361158440,1747312266193,-440.9,0.00012965,2]
[361158441,1747312266203,-1038.52,0.00012965,2]
[361158442,1747312266213,-400.0,0.00012965,2]
[361158443,1747312266223,-881.03,0.00012965,2]
[361158444,1747312266233,-501.16,0.00012965,2]
[361158445,1747312266243,-1344.14,0.00012965,2]
[361158446,1747312266253,-451.75,0.00012965,2]
[361158447,1747312266263,-400.0,0.00012965,2]
[361158448,1747312266273,-612.11,0.00012965,2]
[361158449,1747312266283,-462.96,0.00012965,2]
[361158450,1747312266293,-477.75,0.00012965,2]
[361158451,1747312266303,-400.0,0.00012965,2]
[361158452,1747312266313,-400.0,0.00012965,2]
[361158453,1747312266323,-401.49066205,0.00012965,2]
[361158454,1747312266332,-439.58,0.00012965,2]
[361158455,1747312266347,-400.0,0.00012965,2]
[361158456,1747312266357,-576.82,0.00012965,2]
[361158457,1747312266367,-413.48,0.00012965,2]
[361158458,1747312266377,-546.12,0.00012965,2]
[361158459,1747312266387,-416.69,0.00012965,2]
[361158460,1747312266397,-505.41,0.00012965,2]
[361158461,1747312266407,-400.0,0.00012965,2]
[361158462,1747312266418,-400.0,0.00012965,2]
[361158463,1747312266427,-465.84,0.00012965,2]
[361158464,1747312266437,-151.0,0.00012965,2]
[361158465,1747312266448,-471.82193953,0.00012965,2]
[361158466,1747312266458,-400.0,0.00012965,2]
[361158467,1747312266472,-1045.24,0.00012965,2]
[361158468,1747312266482,-472.83,0.00012965,2]
[361158469,1747312266491,-400.0,0.00012965,2]
[361158470,1747312266501,-699.13,0.00012965,2]
[361158471,1747312266511,-999.87,0.00012965,2]
[361158472,1747312266521,-1258.7,0.00012965,2]
[361158473,1747312266530,-871.71,0.00012965,2]
[361158474,1747312266539,-400.0,0.00012965,2]
[361158475,1747312266549,-563.34,0.00012965,2]
[361158476,1747312266559,-522.13,0.00012965,2]
[361158477,1747312266569,-569.36,0.00012965,2]
[361158478,1747312266578,-467.55,0.00012965,2]
[361158479,1747312266588,-558.97,0.00012965,2]
[361158480,1747312266602,-995.06,0.00012965,2]
[361158481,1747312266612,-2978.01,0.00012965,2]
[361158482,1747312266622,-400.0,0.00012965,2]
[361158483,1747312266632,-961.53,0.00012965,2]
[361158484,1747312266642,-814.79,0.00012965,2]
[361158485,1747312266651,-400.0,0.00012965,2]
[361158486,1747312266661,-1150.65,0.00012965,2]
[361158487,1747312266671,-953.55,0.00012965,2]
[361158488,1747312266681,-945.18,0.00012965,2]
[361158489,1747312266692,-605.88,0.00012965,2]
[361158490,1747312266702,-400.0,0.00012965,2]
[361158491,1747312266711,-793.37,0.00012965,2]
[361158492,1747312266722,-400.0,0.00012965,2]
[361158493,1747312266732,-400.0,0.00012965,2]
[361158494,1747312266742,-400.0,0.00012965,2]
[361158495,1747312266752,-565.3,0.00012965,2]
[361158496,1747312266762,-3659.41,0.00012965,2]
[361158497,1747312266773,-400.0,0.00012965,2]
[361158498,1747312266783,-400.0,0.00012965,2]
[361158499,1747312266794,-586.1,0.00012965,2]
[361158500,1747312266804,-866.92,0.00012965,2]
[361158501,1747312266814,-1133.62,0.00012965,2]
[361158502,1747312266824,-400.0,0.00012965,2]
[361158503,1747312266834,-400.0,0.00012965,2]
[361158504,1747312266848,-896.17,0.00012965,2]
[361158505,1747312266857,-3422.62,0.00012965,2]
[361158506,1747312266867,-400.0,0.00012965,2]
[361158507,1747312266877,-400.0,0.00012965,2]
[361158508,1747312266887,-1508.16,0.00012965,2]
[361158509,1747312266897,-400.0,0.00012965,2]
[361158510,1747312266907,-400.0,0.00012965,2]
[361158511,1747312266918,-2309.39,0.00012965,2]
[361158512,1747312266928,-546.0,0.00012965,2]
[361158513,1747312266939,-521.69,0.00012965,2]
[361158514,1747312266950,-982.05,0.00012965,2]
[361158515,1747312266961,-499.46,0.00012965,2]
[361158516,1747312266972,-400.0,0.00012965,2]
[361158517,1747312266983,-2191.97,0.00012965,2]
[361158518,1747312266995,-957.61,0.00012965,2]
[361158519,1747312267006,-722.35,0.00012965,2]
[361158520,1747312267017,-400.0,0.00012965,2]
[361158521,1747312267027,-2080.12,0.00012965,2]
[361158522,1747312267040,-668.17,0.00012965,2]
[361158523,1747312267051,-400.0,0.00012965,2]
[361158524,1747312267062,-400.0,0.00012965,2]
[361158525,1747312267072,-400.0,0.00012965,2]
[361158526,1747312267083,-1597.82,0.00012965,2]
[361158527,1747312267099,-1630.72,0.00012965,2]
[361158528,1747312267111,-400.0,0.00012965,2]
[361158529,1747312267122,-3843.82,0.00012965,2]
[361158530,1747312267133,-598.25,0.00012965,2]
[361158531,1747312267143,-1950.93,0.00012965,2]
[361158532,1747312267153,-457.12,0.00012965,2]
[361158533,1747312267164,-922.32,0.00012965,2]
[361158534,1747312267174,-10611.15,0.00012965,2]
[361158535,1747312267187,-400.0,0.00012965,2]
[361158536,1747312267198,-400.0,0.00012965,2]
[361158537,1747312267208,-400.0,0.00012965,2]
[361158538,1747312267219,-1108.85,0.00012965,2]
[361158539,1747312267228,-541.7,0.00012965,2]
[361158540,1747312267238,-501.52,0.00012965,2]
[361158541,1747312267249,-601.85,0.00012965,2]
[361158542,1747312267259,-589.76,0.00012965,2]
[361158543,1747312267269,-29073.02,0.00012965,2]
[361158544,1747312267279,-622.13,0.00012965,2]
[361158545,1747312267289,-400.0,0.00012965,2]
[361158546,1747312267299,-3250.93,0.00012965,2]
[361158547,1747312267309,-676.29,0.00012965,2]
[361158548,1747312267320,-2267.04,0.00012965,2]
[361158549,1747312267330,-530.87,0.00012965,2]
[361158550,1747312267340,-420.88,0.00012965,2]
[361158551,1747312267355,-796.59,0.00012965,2]
[361158552,1747312267364,-419.55,0.00012966,2]
[361158553,1747312267374,-523.49183713,0.00012966,2]
[361158554,1747312267384,-400.0,0.00012966,2]
[361158555,1747312267394,-400.0,0.00012966,2]
[361158556,1747312267404,-236.37,0.00012966,2]
[361158557,1747312267414,-500.0,0.00012966,2]
[361158558,1747312267423,-500.0,0.00012966,2]
[361158559,1747312267433,-500.0,0.00012966,2]
[361158560,1747312267443,-500.0,0.00012966,2]
[361158561,1747312267452,-500.0,0.00012966,2]
[361158562,1747312267468,-500.0,0.00012966,2]
[361158563,1747312267486,-500.0,0.00012966,2]
[361158564,1747312267501,-500.0,0.00012966,2]
[361158565,1747312267511,-500.0,0.00012966,2]
[361158566,1747312267521,-500.0,0.00012966,2]
[361158567,1747312267530,-500.0,0.00012966,2]
[361158568,1747312267540,-500.0,0.00012966,2]
[361158569,1747312267549,-500.0,0.00012966,2]
[361158570,1747312267559,-500.0,0.00012966,2]
[361158571,1747312267568,-500.0,0.00012966,2]
[361158572,1747312267579,-500.0,0.00012966,2]
[361158573,1747312267589,-500.0,0.00012966,2]
[361158574,1747312267601,-500.0,0.00012966,2]
[361158575,1747312267611,-500.0,0.00012966,2]
[361158576,1747312267621,-500.0,0.00012966,2]
[361158577,1747312267631,-500.0,0.00012966,2]
[361158578,1747312267640,-500.0,0.00012966,2]
[361158579,1747312267650,-500.0,0.00012966,2]
[361158580,1747312267660,-500.0,0.00012966,2]
[361158581,1747312267670,-500.0,0.00012966,2]
[361158582,1747312267682,-500.0,0.00012966,2]
[361158583,1747312267692,-500.0,0.00012966,2]
[361158584,1747312267702,-500.0,0.00012966,2]
[361158585,1747312267712,-500.0,0.00012966,2]
[361158586,1747312267722,-500.0,0.00012966,2]
[361158587,1747312267732,-500.0,0.00012966,2]
[361158588,1747312267742,-500.0,0.00012966,2]
[361158589,1747312267751,-500.0,0.00012966,2]
[361158590,1747312267761,-500.0,0.00012966,2]
[361158591,1747312267771,-500.0,0.00012966,2]
[361158592,1747312267781,-500.0,0.00012966,2]
[361158593,1747312267791,-500.0,0.00012966,2]
[361158594,1747312267800,-500.0,0.00012966,2]
[361158595,1747312267810,-500.0,0.00012966,2]
[361158596,1747312267820,-500.0,0.00012966,2]
[361158597,1747312267830,-500.0,0.00012966,2]
[361158598,1747312267847,-500.0,0.00012966,2]
[361158599,1747312267857,-500.0,0.00012966,2]
[361158600,1747312267868,-500.0,0.00012966,2]
[361158601,1747312267878,-500.0,0.00012966,2]
[361158602,1747312267891,-500.0,0.00012966,2]
[361158603,1747312267901,-500.0,0.00012966,2]
[361158604,1747312267912,-500.0,0.00012966,2]
[361158605,1747312267922,-500.0,0.00012966,2]
[361158606,1747312267932,-500.0,0.00012966,2]
[361158607,1747312267942,-500.0,0.00012966,2]
[361158608,1747312267952,-500.0,0.00012966,2]
[361158609,1747312267963,-500.0,0.00012966,2]
[361158610,1747312267973,-500.0,0.00012966,2]
[361158611,1747312267983,-500.0,0.00012966,2]
[361158612,1747312267992,-500.0,0.00012966,2]
[361158613,1747312268002,-500.0,0.00012966,2]
[361158614,1747312268012,-500.0,0.00012966,2]
[361158615,1747312268022,-500.0,0.00012966,2]
[361158616,1747312268032,-500.0,0.00012966,2]
[361158617,1747312268042,-500.0,0.00012966,2]
[361158618,1747312268053,-500.0,0.00012966,2]
[361158619,1747312268063,-500.0,0.00012966,2]
[361158620,1747312268073,-500.0,0.00012966,2]
[361158621,1747312268083,-500.0,0.00012966,2]
[361158622,1747312268098,-500.0,0.00012966,2]
[361158623,1747312268109,-815.0,0.00012966,2]
[361158624,1747312268120,-500.0,0.00012966,2]
[361158625,1747312268131,-500.0,0.00012966,2]
[361158626,1747312268141,-500.0,0.00012966,2]
[361158627,1747312268151,-500.0,0.00012966,2]
[361158628,1747312268162,-500.0,0.00012966,2]
[361158629,1747312268173,-500.0,0.00012966,2]
[361158630,1747312268184,-500.0,0.00012966,2]
[361158631,1747312268194,-500.0,0.00012966,2]